bitfinex/quotes_BTCUSD_20250802
["timestamp","ask_amount","ask_price","bid_price","bid_amount"]
[1754144108408,4.23483745,113640.0,113630.0,0.05271795]
[1754144108901,1.92779523,113640.0,113630.0,0.01122359]
[1754144109148,5.27198223,113640.0,113630.0,0.00239923]
[1754144109400,3.86019685,113630.0,113620.0,0.0002]
[1754144109627,0.34,113620.0,113610.0,0.00336]
[1754144109862,4.01646677,113620.0,113610.0,0.00535]
[1754144110080,4.05735869,113620.0,113610.0,0.00535]
[1754144110303,0.71317169,113620.0,113610.0,0.03287]
[1754144110525,3.75776532,113620.0,113610.0,0.03287]
[1754144111541,4.08384269,113620.0,113610.0,0.03287]
[1754144112004,4.08384269,113620.0,113610.0,0.02772]
[1754144112240,4.08384269,113620.0,113610.0,0.03088]
[1754144113183,3.75776532,113620.0,113610.0,0.03088]
[1754144113413,4.08384269,113620.0,113610.0,0.03088]
[1754144113870,4.0700592,113620.0,113610.0,0.03088]
[1754144114317,3.74398183,113620.0,113610.0,0.03088]
[1754144116050,0.39979483,113620.0,113610.0,0.03088]
[1754144116195,3.74398183,113620.0,113610.0,0.03088]
[1754144117879,3.75776564,113620.0,113610.0,0.03088]
[1754144119595,4.08384301,113620.0,113610.0,0.03088]
[1754144120002,3.75776564,113620.0,113610.0,0.03088]
[1754144120414,3.75775341,113620.0,113610.0,0.03088]
[1754144121038,0.41356641,113620.0,113610.0,0.02772]
[1754144121243,4.08383078,113620.0,113610.0,0.0002]
[1754144121468,0.91566912,113620.0,113610.0,0.0002]
[1754144121693,4.25985612,113620.0,113610.0,0.0002]
[1754144122989,3.75775341,113620.0,113610.0,0.0002]
[1754144123193,3.75775341,113620.0,113610.0,0.02772]
[1754144123388,4.08383078,113620.0,113610.0,0.02772]
[1754144123560,4.08483078,113620.0,113610.0,0.02772]
[1754144123791,4.07104697,113620.0,113610.0,0.02772]
[1754144124167,0.4007826,113620.0,113610.0,0.02772]
[1754144124417,3.7449696,113620.0,113610.0,0.03088]
[1754144125313,3.58099494,113620.0,113610.0,0.03088]
[1754144125580,3.90707231,113620.0,113610.0,0.03088]
[1754144125807,3.58099494,113620.0,113610.0,0.03088]
[1754144126049,3.90707231,113620.0,113610.0,0.03088]
[1754144126294,3.58099494,113620.0,113610.0,0.03088]
[1754144126524,3.40496895,113620.0,113610.0,0.03088]
[1754144126754,3.73104632,113620.0,113610.0,0.03088]
[1754144127214,3.73104632,113620.0,113610.0,0.02772]
[1754144127440,4.24707166,113620.0,113610.0,0.02772]
[1754144128120,4.26085556,113620.0,113610.0,0.02772]
[1754144129514,3.684187,113610.0,113600.0,0.32921737]
[1754144129716,3.69037652,113610.0,113600.0,0.33130737]
[1754144130136,3.69037652,113610.0,113600.0,0.00523]
[1754144130813,3.69037652,113610.0,113600.0,0.00623]
[1754144131239,3.69037652,113610.0,113600.0,0.00723]
[1754144131454,3.69037652,113610.0,113600.0,0.03411]
[1754144132117,3.71035022,113610.0,113600.0,0.03411]
[1754144133671,3.88639106,113610.0,113600.0,0.03411]
[1754144133886,3.71035022,113610.0,113600.0,0.03411]
[1754144134309,0.56869006,113610.0,113600.0,0.03411]
[1754144134543,3.57287706,113610.0,113600.0,0.03411]
[1754144135427,0.22869006,113610.0,113600.0,0.03411]
[1754144135856,3.87898073,113610.0,113600.0,0.03411]
[1754144136358,3.55290336,113610.0,113600.0,0.03411]
[1754144136588,3.89290336,113610.0,113600.0,0.03411]
[1754144136811,3.71686252,113610.0,113600.0,0.03411]
[1754144137275,3.89290336,113610.0,113600.0,0.03411]
[1754144137495,4.24470726,113610.0,113600.0,0.0022]
[1754144137725,4.26374648,113610.0,113600.0,0.0022]
[1754144137957,4.28372018,113610.0,113600.0,0.03202]
[1754144138201,4.28372018,113610.0,113590.0,0.02708]
[1754144138202,3.90594356,113600.0,113590.0,0.02708]
[1754144138454,5.04979442,113600.0,113590.0,0.0002]
[1754144138698,3.86025883,113590.0,113580.0,0.0202]
[1754144138914,4.21249942,113590.0,113580.0,0.01087302]
[1754144139133,4.27881583,113590.0,113580.0,0.01087302]
[1754144139344,4.27881583,113590.0,113580.0,0.00204604]
[1754144139570,4.27881583,113590.0,113580.0,0.00219004]
[1754144139797,3.684187,113580.0,113570.0,0.00024]
[1754144140047,4.06215412,113580.0,113570.0,0.00071825]
[1754144140284,3.73607675,113580.0,113570.0,0.03053825]
[1754144140979,3.76256975,113580.0,113570.0,0.35661562]
[1754144141493,3.76256975,113580.0,113570.0,0.35870562]
[1754144141755,3.76256975,113580.0,113570.0,0.03262825]
[1754144141970,3.76256975,113580.0,113570.0,0.35870562]
[1754144142633,3.93865708,113580.0,113570.0,0.00071825]
[1754144143293,4.26473445,113580.0,113570.0,0.00171825]
[1754144143552,3.76256975,113580.0,113570.0,0.00171825]
[1754144143774,3.76256975,113580.0,113570.0,0.02859825]
[1754144143997,3.76256975,113580.0,113570.0,0.35761562]
[1754144144214,3.76256975,113580.0,113570.0,0.03053825]
[1754144144440,3.76256975,113580.0,113570.0,0.03253825]
[1754144144673,3.76356975,113580.0,113570.0,0.03253825]
[1754144144916,3.93965708,113580.0,113570.0,0.03053825]
[1754144145361,4.26573445,113580.0,113570.0,0.02759825]
[1754144145589,3.94741708,113580.0,113570.0,0.00071825]
[1754144145816,4.26573445,113580.0,113570.0,0.00071825]
[1754144146267,4.26573445,113580.0,113570.0,0.02759825]
[1754144146511,4.26573445,113580.0,113570.0,0.02170901]
[1754144146960,4.26573445,113580.0,113570.0,0.01287977]
[1754144147403,4.29404445,113580.0,113570.0,0.00294]
[1754144147881,3.75372217,113580.0,113570.0,0.32607737]
[1754144148109,3.9298095,113580.0,113570.0,0.00209]
[1754144148326,3.95553603,113580.0,113570.0,0.32607737]
[1754144148775,3.684187,113570.0,113560.0,0.32627737]
[1754144149005,3.71082902,113570.0,113560.0,0.32877844]
[1754144149149,3.73655555,113570.0,113560.0,0.32877844]
[1754144149375,3.73655555,113570.0,113560.0,0.35565844]
[1754144149749,3.7491551,113570.0,113560.0,0.35565844]
[1754144149951,3.7491551,113570.0,113560.0,0.35959844]
[1754144151769,3.7512451,113570.0,113560.0,0.35959844]
[1754144154873,3.72551857,113570.0,113560.0,0.03311]
[1754144155091,3.72342857,113570.0,113560.0,0.35959844]
[1754144155309,3.70345487,113570.0,113560.0,0.03311]
[1754144155538,3.70345487,113570.0,113560.0,0.35959844]
[1754144156040,3.72342857,113570.0,113560.0,0.35959844]
[1754144156730,0.37924157,113570.0,113560.0,0.35959844]
[1754144157000,3.72342857,113570.0,113560.0,0.35959844]
[1754144157236,0.37924157,113570.0,113560.0,0.35959844]
[1754144157494,3.70345487,113570.0,113560.0,0.35959844]
[1754144158633,3.70555487,113570.0,113560.0,0.35959844]
[1754144158882,3.69936535,113570.0,113560.0,0.35959844]
[1754144159089,3.70554597,113570.0,113560.0,0.35959844]
[1754144159547,3.70344597,113570.0,113560.0,0.35959844]
[1754144160029,3.70344597,113570.0,113560.0,0.03311]
[1754144160261,3.70344597,113570.0,113560.0,0.35959844]
[1754144160708,3.72341967,113570.0,113560.0,0.35959844]
[1754144160923,0.37923267,113570.0,113560.0,0.35959844]
[1754144161135,3.72341967,113570.0,113560.0,0.35959844]
[1754144162712,3.72341967,113570.0,113560.0,0.03311]
[1754144162974,0.37923267,113570.0,113560.0,0.35959844]
[1754144163247,3.72341967,113570.0,113560.0,0.35959844]
[1754144164229,0.37923267,113570.0,113560.0,0.35959844]
[1754144164231,3.72341967,113570.0,113560.0,0.35959844]
[1754144166436,3.74245381,113570.0,113560.0,0.35959844]
[1754144166967,3.7424688,113570.0,113560.0,0.35959844]
[1754144167220,0.3982818,113570.0,113560.0,0.35959844]
[1754144167485,3.7424688,113570.0,113560.0,0.03311]
[1754144167736,3.7424688,113570.0,113560.0,0.35959844]
[1754144169247,3.7445688,113570.0,113560.0,0.35959844]
[1754144169712,3.75835795,113570.0,113560.0,0.35959844]
[1754144170833,3.75835795,113570.0,113560.0,0.68607876]
[1754144171753,3.75835795,113570.0,113560.0,0.35959438]
[1754144173128,3.75835795,113570.0,113560.0,0.68607876]
[1754144173844,3.73628425,113570.0,113560.0,0.68607876]
[1754144174320,3.73628425,113570.0,113560.0,1.01256314]
[1754144174544,3.7224951,113570.0,113560.0,1.01256314]
[1754144174774,3.7224951,113570.0,113560.0,0.68607876]
[1754144176528,0.3783081,113570.0,113560.0,0.68607876]
[1754144176773,3.7224951,113570.0,113560.0,0.68607876]
[1754144176996,3.70346096,113570.0,113560.0,0.35951653]
[1754144177448,3.71724914,113570.0,113560.0,0.35951653]
[1754144178399,3.71105353,113570.0,113560.0,0.35951653]
[1754144179346,0.36686653,113570.0,113560.0,0.77341542]
[1754144179571,0.02686653,113570.0,113560.0,0.77341542]
[1754144180026,0.36686653,113570.0,113560.0,0.85761531]
[1754144181595,0.36686653,113570.0,113560.0,0.78757197]
[1754144181830,0.36686653,113570.0,113560.0,0.46116544]
[1754144182079,0.36686653,113570.0,113560.0,0.40345255]
[1754144183471,3.71105353,113570.0,113560.0,0.40345255]
[1754144183930,3.69726535,113570.0,113560.0,0.40345255]
[1754144184384,3.69726535,113570.0,113560.0,0.38600353]
[1754144186651,0.36686631,113570.0,113560.0,0.38600353]
[1754144186884,3.71105331,113570.0,113560.0,0.38600353]
[1754144188092,3.71318331,113570.0,113560.0,0.059597]
[1754144188317,3.74351331,113570.0,113560.0,0.32760653]
[1754144188543,3.71318331,113570.0,113560.0,0.35548653]
[1754144189142,0.36899631,113570.0,113560.0,0.36060653]
[1754144189346,3.71318331,113570.0,113560.0,0.36060653]
[1754144191613,3.74351331,113570.0,113560.0,0.32760653]
[1754144191839,3.74660331,113570.0,113560.0,0.0012]
[1754144192058,3.74660331,113570.0,113560.0,0.32760653]
[1754144192452,3.74660331,113570.0,113560.0,0.0012]
[1754144192453,3.76657701,113570.0,113560.0,0.0012]
[1754144192670,0.42239001,113570.0,113560.0,0.0012]
[1754144192893,3.76657701,113570.0,113560.0,0.32760653]
[1754144193543,3.75278905,113570.0,113560.0,0.32760653]
[1754144193754,0.40860205,113570.0,113560.0,0.32760653]
[1754144193974,3.75278905,113570.0,113560.0,0.32760653]
[1754144194686,3.57163633,113570.0,113560.0,0.32760653]
[1754144197083,3.58340703,113570.0,113560.0,0.0012]
[1754144197295,3.58340703,113570.0,113560.0,0.32760653]
[1754144198007,3.60337715,113570.0,113560.0,0.32760653]
[1754144198217,3.60337715,113570.0,113560.0,0.0012]
[1754144199972,0.25919015,113570.0,113560.0,0.0012]
[1754144200192,3.60337715,113570.0,113560.0,0.0012]
[1754144201102,3.77947999,113570.0,113560.0,0.0012]
[1754144201589,4.15810705,113570.0,113550.0,0.0002]
[1754144201810,3.684187,113560.0,113550.0,0.0002]
[1754144202039,3.92363062,113560.0,113550.0,0.0002]
[1754144202958,3.92853454,113560.0,113550.0,0.0002]
[1754144203628,4.25594107,113560.0,113550.0,0.0002]
[1754144203866,3.92953454,113560.0,113550.0,0.0002]
[1754144204090,3.93053454,113560.0,113550.0,0.0002]
[1754144204513,3.684187,113550.0,113540.0,0.0002]
[1754144204792,3.86245086,113550.0,113540.0,0.0002]
[1754144205018,3.89587086,113550.0,113540.0,0.0002]
[1754144205744,3.72591504,113550.0,113540.0,0.0002]
[1754144205979,3.72591504,113550.0,113540.0,0.0012]
[1754144206675,3.73970762,113550.0,113540.0,0.0012]
[1754144207134,4.23970762,113550.0,113540.0,0.0012]
[1754144207394,4.26658707,113550.0,113540.0,0.0012]
[1754144208788,4.44272093,113550.0,113540.0,0.0012]
[1754144209037,4.44272093,113550.0,113540.0,1e-08]
[1754144209701,4.44272093,113550.0,113530.0,0.0202]
[1754144209892,3.684187,113540.0,113530.0,0.0202]
[1754144210189,3.719737,113540.0,113530.0,0.0202]
[1754144210640,3.686317,113540.0,113530.0,0.04808]
[1754144210893,3.686317,113540.0,113530.0,0.37960653]
[1754144211133,3.684187,113540.0,113530.0,0.41738918]
[1754144211364,3.684187,113540.0,113530.0,0.37960653]
[1754144212742,3.684187,113540.0,113530.0,0.38060653]
[1754144212984,3.684187,113540.0,113530.0,0.37960653]
[1754144213450,3.684187,113540.0,113530.0,0.38160653]
[1754144213681,3.684187,113540.0,113530.0,0.39905555]
[1754144213893,3.684187,113540.0,113530.0,0.40005555]
[1754144214134,3.684187,113540.0,113530.0,0.72646208]
[1754144214363,3.684187,113540.0,113530.0,0.40005555]
[1754144215074,0.02688112,113550.0,113540.0,0.01744902]
[1754144215301,0.02688112,113550.0,113540.0,0.67444394]
[1754144215520,0.5,113570.0,113540.0,0.78860197]
[1754144215742,3.344187,113560.0,113550.0,0.34385555]
[1754144215966,3.6903631,113560.0,113550.0,0.37601555]
[1754144216217,3.6903631,113560.0,113550.0,0.37799555]
[1754144216829,3.70415225,113560.0,113550.0,0.37799555]
[1754144217040,3.70515225,113560.0,113550.0,0.70440208]
[1754144218203,3.73996858,113560.0,113550.0,0.03414]
[1754144218426,3.73996858,113560.0,113550.0,0.02893]
[1754144218427,3.76335598,113560.0,113550.0,0.02893]
[1754144218681,3.684187,113550.0,113540.0,0.35856653]
[1754144218891,3.684187,113550.0,113540.0,0.36054653]
[1754144219122,3.69036675,113550.0,113540.0,0.36054653]
[1754144219369,3.684187,113550.0,113540.0,0.03414]
[1754144219606,3.684187,113550.0,113540.0,0.36054653]
[1754144220355,3.344187,113540.0,113530.0,0.37876653]
[1754144220596,3.344187,113540.0,113530.0,0.04913]
[1754144220597,3.346307,113540.0,113530.0,0.04913]
[1754144220844,3.346307,113540.0,113530.0,0.37553653]
[1754144221071,3.35797847,113540.0,113530.0,0.38074653]
[1754144222448,3.35797847,113540.0,113530.0,0.38374653]
[1754144222693,3.35797847,113540.0,113530.0,0.05734]
[1754144222930,3.39028847,113540.0,113530.0,0.05113]
[1754144223163,3.73347847,113540.0,113530.0,0.0222]
[1754144223391,0.38929147,113540.0,113530.0,0.0242]
[1754144223620,0.41031633,113540.0,113530.0,0.0242]
[1754144223868,3.719687,113540.0,113530.0,0.0222]
[1754144224347,3.719687,113540.0,113530.0,0.0232]
[1754144225039,3.719687,113540.0,113530.0,0.34960653]
[1754144225322,3.719687,113540.0,113530.0,0.34760653]
[1754144225559,3.719687,113540.0,113530.0,0.0222]
[1754144225773,3.719687,113540.0,113530.0,0.34860653]
[1754144226253,3.719687,113540.0,113530.0,0.34760653]
[1754144226772,3.73347939,113540.0,113530.0,0.34760653]
[1754144227212,3.73347939,113540.0,113530.0,0.0212]
[1754144227435,3.73347939,113540.0,113530.0,0.34760653]
[1754144228537,3.73966833,113540.0,113530.0,0.34760653]
[1754144228764,3.73966833,113540.0,113530.0,0.0212]
[1754144229020,3.73966833,113540.0,113530.0,0.34760653]
[1754144229482,3.73966833,113540.0,113530.0,0.0212]
[1754144230146,3.73966927,113540.0,113530.0,0.0212]
[1754144230376,3.73966927,113540.0,113530.0,0.34760653]
[1754144231007,4.23966927,113540.0,113530.0,0.34760653]
[1754144231897,0.89548227,113540.0,113530.0,0.34760653]
[1754144232108,4.23966927,113540.0,113530.0,0.34760653]
[1754144232769,4.23966927,113540.0,113530.0,0.0212]
[1754144233225,4.23966927,113540.0,113530.0,0.34760653]
[1754144233898,4.22587688,113540.0,113530.0,0.0212]
[1754144238027,4.23966983,113540.0,113530.0,0.0212]
[1754144243743,4.22587688,113540.0,113530.0,0.0212]
[1754144246760,4.23966981,113540.0,113530.0,0.0212]
[1754144247460,4.23966981,113540.0,113530.0,0.0202]
[1754144247680,4.56607634,113540.0,113530.0,0.0202]
[1754144247900,4.24066981,113540.0,113530.0,0.0202]
[1754144248398,4.24166981,113540.0,113530.0,0.0202]
[1754144251340,4.20616981,113540.0,113530.0,0.38080653]
[1754144252221,0.86198281,113540.0,113530.0,0.38080653]
[1754144252441,4.20616981,113540.0,113530.0,0.38080653]
[1754144253329,4.20616981,113540.0,113530.0,0.0544]
[1754144253561,4.20616981,113540.0,113530.0,0.38080653]
[1754144255142,4.20616981,113540.0,113530.0,0.0544]
[1754144255565,4.20831981,113540.0,113530.0,0.0544]
[1754144256509,4.20832185,113540.0,113530.0,0.0544]
[1754144257169,4.20617185,113540.0,113530.0,0.0544]
[1754144258052,4.20617185,113540.0,113530.0,0.38080653]
[1754144259367,0.86198485,113540.0,113530.0,0.0544]
[1754144259589,0.86198485,113540.0,113530.0,0.38080653]
[1754144259817,4.20617185,113540.0,113530.0,0.38080653]
[1754144260491,4.20617185,113540.0,113530.0,0.0544]
[1754144260711,4.20832185,113540.0,113530.0,0.0544]
[1754144261414,0.86413485,113540.0,113530.0,0.0544]
[1754144261626,4.20832185,113540.0,113530.0,0.0544]
[1754144262296,4.23695185,113540.0,113530.0,0.05125]
[1754144262737,4.20832185,113540.0,113530.0,0.05125]
[1754144263231,4.20832185,113540.0,113530.0,0.0544]
[1754144267367,4.20832185,113540.0,113530.0,0.05125]
[1754144267603,4.20831834,113540.0,113530.0,0.05125]
[1754144269222,4.20831834,113540.0,113530.0,0.0544]
[1754144270112,4.20831834,113540.0,113530.0,0.05125]
[1754144270347,4.23694834,113540.0,113530.0,0.05125]
[1754144271007,4.20831834,113540.0,113530.0,0.05125]
[1754144271937,4.20831834,113540.0,113530.0,0.0491]
[1754144272154,4.23694834,113540.0,113530.0,0.0491]
[1754144273632,0.89276134,113540.0,113530.0,0.0491]
[1754144273835,4.23694834,113540.0,113530.0,0.0491]
[1754144274717,0.89276134,113540.0,113530.0,0.0491]
[1754144274930,4.23694834,113540.0,113530.0,0.0491]
[1754144275137,4.23694834,113540.0,113530.0,0.0202]
[1754144276276,4.56653487,113540.0,113530.0,0.0202]
[1754144276780,4.56653473,113540.0,113530.0,0.0202]
[1754144277260,4.23393993,113540.0,113530.0,0.0202]
[1754144277468,4.24012854,113540.0,113530.0,0.0202]
[1754144278132,4.56653507,113540.0,113530.0,0.0202]
[1754144279527,4.5665356,113540.0,113530.0,0.0202]
[1754144280411,4.26663207,113540.0,113530.0,0.0202]
[1754144280628,4.24012907,113540.0,113530.0,0.0202]
[1754144281530,4.24013104,113540.0,113530.0,0.0202]
[1754144284676,4.56653757,113540.0,113530.0,0.0202]
[1754144285111,4.5855614,113540.0,113530.0,0.0202]
[1754144285329,4.56653757,113540.0,113530.0,0.0202]
[1754144285560,4.59304057,113540.0,113530.0,0.0202]
[1754144286720,4.61206646,113540.0,113530.0,0.0202]
[1754144286945,0.92244704,113540.0,113530.0,0.0202]
[1754144287197,4.59304272,113540.0,113530.0,0.0202]
[1754144289037,1.24885572,113540.0,113530.0,0.0202]
[1754144289262,4.59304272,113540.0,113530.0,0.0202]
[1754144289965,4.26663619,113540.0,113530.0,0.0202]
[1754144290172,4.59304272,113540.0,113530.0,0.0202]
[1754144290387,4.61207002,113540.0,113530.0,0.0202]
[1754144290667,4.61207013,113540.0,113530.0,0.0202]
[1754144291435,4.59304272,113540.0,113530.0,0.0202]
[1754144291954,4.26663619,113540.0,113530.0,0.0202]
[1754144292307,4.59304272,113540.0,113530.0,0.0202]
[1754144293322,4.59304248,113540.0,113530.0,0.0202]
[1754144293824,4.61206756,113540.0,113530.0,0.0202]
[1754144294058,4.59827463,113540.0,113530.0,0.0202]
[1754144296498,4.2718681,113540.0,113530.0,0.0202]
[1754144298252,4.28566156,113540.0,113530.0,0.0202]
[1754144298704,4.61206809,113540.0,113530.0,0.0202]
[1754144298919,4.64688442,113540.0,113530.0,0.0202]
[1754144299134,4.61206809,113540.0,113530.0,0.0202]
[1754144300207,4.60888809,113540.0,113530.0,0.0202]
[1754144302380,4.60888809,113540.0,113530.0,0.04966]
[1754144302619,4.28248156,113540.0,113530.0,0.04966]
[1754144303060,4.25385156,113540.0,113530.0,0.04966]
[1754144304920,4.28167174,113540.0,113530.0,0.04966]
[1754144305122,4.60807827,113540.0,113530.0,0.04966]
[1754144305794,4.60807827,113540.0,113530.0,0.0202]
[1754144306050,4.61127827,113540.0,113530.0,0.0202]
[1754144306559,4.28487174,113540.0,113530.0,0.0202]
[1754144306745,4.61127827,113540.0,113530.0,0.0202]
[1754144307012,4.60807827,113540.0,113530.0,0.0202]
[1754144307505,4.61127827,113540.0,113530.0,0.0202]
[1754144307718,4.59748481,113540.0,113530.0,0.0202]
[1754144307900,4.59428481,113540.0,113530.0,0.0202]
[1754144308173,4.59428481,113540.0,113530.0,0.04799]
[1754144309739,4.26787828,113540.0,113530.0,0.04799]
[1754144309986,4.24005828,113540.0,113530.0,0.04799]
[1754144310238,3.89482651,113540.0,113530.0,0.04799]
[1754144311531,3.89267651,113540.0,113530.0,0.05298]
[1754144311797,3.89267651,113540.0,113530.0,0.09093865]
[1754144312004,4.20617351,113540.0,113530.0,0.05298]
[1754144312915,0.86198651,113540.0,113530.0,0.05298]
[1754144313139,4.20617351,113540.0,113530.0,0.05298]
[1754144316555,4.20617535,113540.0,113530.0,0.05298]
[1754144316799,0.86198835,113540.0,113530.0,0.05298]
[1754144317018,4.20617535,113540.0,113530.0,0.05298]
[1754144321711,4.20829535,113540.0,113530.0,0.05298]
[1754144322274,4.20829673,113540.0,113530.0,0.05298]
[1754144325230,4.20829663,113540.0,113530.0,0.05298]
[1754144326023,0.86410963,113540.0,113530.0,0.05298]
[1754144326271,4.20829663,113540.0,113530.0,0.05298]
[1754144326725,4.19450332,113540.0,113530.0,0.05298]
[1754144329159,0.85031632,113540.0,113530.0,0.05298]
[1754144329363,4.20829636,113540.0,113530.0,0.05298]
[1754144331231,0.86410936,113540.0,113530.0,0.05298]
[1754144331455,4.20829636,113540.0,113530.0,0.05298]
[1754144332990,4.53500105,113540.0,113530.0,0.05298]
[1754144333699,4.20829636,113540.0,113530.0,0.05298]
[1754144333924,4.19450332,113540.0,113530.0,0.05298]
[1754144334144,4.52120801,113540.0,113530.0,0.05298]
[1754144335920,4.52120801,113540.0,113530.0,0.04995]
[1754144336640,4.52120801,113540.0,113530.0,0.04799]
[1754144336873,4.22334167,113540.0,113530.0,0.04799]
[1754144337096,4.55004636,113540.0,113530.0,0.04799]
[1754144337349,1.20585936,113540.0,113530.0,0.04799]
[1754144337572,4.55004636,113540.0,113530.0,0.04799]
[1754144338012,4.56383948,113540.0,113530.0,0.04799]
[1754144339350,1.21965248,113540.0,113530.0,0.04799]
[1754144339572,4.59034048,113540.0,113530.0,0.04799]
[1754144339790,4.59034108,113540.0,113530.0,0.04799]
[1754144340583,4.9458923,113540.0,113530.0,0.0202]
[1754144340803,4.98651755,113540.0,113530.0,0.0202]
[1754144341028,4.96492447,113540.0,113530.0,0.0202]
[1754144341245,4.93919794,113540.0,113530.0,0.0202]
[1754144342340,4.28578856,113540.0,113530.0,0.0202]
[1754144342520,4.93919794,113540.0,113530.0,0.0202]
[1754144342948,5.11534731,113540.0,113530.0,0.0202]
[1754144343158,4.96492447,113540.0,113530.0,0.0202]
[1754144344091,4.93919794,113540.0,113530.0,0.0202]
[1754144344782,4.93919348,113540.0,113530.0,0.0202]
[1754144346635,4.2857841,113540.0,113530.0,0.0202]
[1754144346866,4.93919348,113540.0,113530.0,0.0202]
[1754144349481,4.61248879,113540.0,113530.0,0.0202]
[1754144350617,1.59500648,113540.0,113530.0,0.0202]
[1754144350873,4.93919348,113540.0,113530.0,0.0202]
[1754144352774,1.59500648,113540.0,113530.0,0.0202]
[1754144353461,4.93919348,113540.0,113530.0,0.0202]
[1754144355798,1.59500648,113540.0,113530.0,0.0202]
[1754144356027,4.93919348,113540.0,113530.0,0.0202]
[1754144356696,4.31151063,113540.0,113530.0,0.0202]
[1754144356921,4.98651309,113540.0,113530.0,0.0202]
[1754144357381,5.16266246,113540.0,113530.0,0.0202]
[1754144357606,4.98651309,113540.0,113530.0,0.0202]
[1754144357834,4.33310371,113540.0,113530.0,0.0202]
[1754144358064,4.98651309,113540.0,113530.0,0.0202]
[1754144358300,4.33310371,113540.0,113530.0,0.0202]
[1754144358757,4.93919348,113540.0,113530.0,0.0202]
[1754144359751,4.93919348,113540.0,113530.0,0.05179]
[1754144359752,4.2517041,113540.0,113530.0,0.05179]
[1754144359992,4.23267193,113540.0,113530.0,0.05179]
[1754144360205,4.20617093,113540.0,113530.0,0.05179]
[1754144360473,4.20617093,113540.0,113530.0,0.37849469]
[1754144360716,4.20617093,113540.0,113530.0,0.70519938]
[1754144360717,3.89267093,113540.0,113530.0,0.70519938]
[1754144360953,3.86617093,113540.0,113530.0,0.78939927]
[1754144361192,3.86617093,113540.0,113530.0,0.80684829]
[1754144361663,3.86617093,113540.0,113530.0,0.7226484]
[1754144362134,0.52198393,113540.0,113530.0,0.05179]
[1754144362378,3.86617093,113540.0,113530.0,0.05179]
[1754144362622,4.20517093,113540.0,113530.0,0.05179]
[1754144363091,4.20417093,113540.0,113530.0,0.05279]
[1754144363305,4.20417093,113540.0,113530.0,0.05479]
[1754144363544,4.20417093,113540.0,113530.0,0.05379]
[1754144363795,4.20417093,113540.0,113530.0,0.05179]
[1754144364011,4.19037781,113540.0,113530.0,0.05279]
[1754144364869,4.19036655,113540.0,113530.0,0.05279]
[1754144365867,0.84617955,113540.0,113530.0,0.05279]
[1754144366333,4.184187,113540.0,113530.0,0.05279]
[1754144366554,4.19036502,113540.0,113530.0,0.05279]
[1754144366781,4.184187,113540.0,113530.0,0.05279]
[1754144367030,4.19797887,113540.0,113530.0,0.05279]
[1754144369639,4.2572154,113540.0,113530.0,0.0212]
[1754144369869,4.59008009,113540.0,113530.0,0.0212]
[1754144370104,4.56435356,113540.0,113530.0,0.0212]
[1754144370540,4.59085356,113540.0,113530.0,0.0212]
[1754144371220,0.91997585,113540.0,113530.0,0.0212]
[1754144371441,4.59085356,113540.0,113530.0,0.0212]
[1754144372073,4.59185356,113540.0,113530.0,0.0212]
[1754144372244,4.26616285,113540.0,113530.0,0.0212]
[1754144372469,4.26295285,113540.0,113530.0,0.04875]
[1754144372669,4.23481285,113540.0,113530.0,0.04875]
[1754144373268,0.89062585,113540.0,113530.0,0.04875]
[1754144373487,4.26295285,113540.0,113530.0,0.04875]
[1754144373735,4.26616285,113540.0,113530.0,0.0212]
[1754144373978,4.59285356,113540.0,113530.0,0.0212]
[1754144374159,4.57906169,113540.0,113530.0,0.0212]
[1754144374686,4.25237098,113540.0,113530.0,0.0212]
[1754144375128,4.57906169,113540.0,113530.0,0.0212]
[1754144375350,4.25237098,113540.0,113530.0,0.0212]
[1754144375580,4.57906169,113540.0,113530.0,0.0212]
[1754144376502,4.25237028,113540.0,113530.0,0.0212]
[1754144376706,4.57906099,113540.0,113530.0,0.0212]
[1754144377370,4.29189015,113540.0,113530.0,0.0212]
[1754144377594,4.26616362,113540.0,113530.0,0.0212]
[1754144377809,4.59285433,113540.0,113530.0,0.0212]
[1754144378029,4.26616362,113540.0,113530.0,0.0212]
[1754144379112,4.26616388,113540.0,113530.0,0.0212]
[1754144379332,0.92197688,113540.0,113530.0,0.0212]
[1754144379551,4.26295388,113540.0,113530.0,0.04875]
[1754144379769,4.23481388,113540.0,113530.0,0.04875]
[1754144380203,4.26295388,113540.0,113530.0,0.04875]
[1754144380891,4.58964459,113540.0,113530.0,0.04875]
[1754144381118,4.26295388,113540.0,113530.0,0.04875]
[1754144381791,0.91876688,113540.0,113530.0,0.04875]
[1754144382023,4.58964459,113540.0,113530.0,0.04875]
[1754144382471,4.59285459,113540.0,113530.0,0.0212]
[1754144382902,4.26616388,113540.0,113530.0,0.0212]
[1754144383116,4.59285459,113540.0,113530.0,0.0212]
[1754144385401,4.26616388,113540.0,113530.0,0.0212]
[1754144385576,4.59285459,113540.0,113530.0,0.0212]
[1754144387018,4.76900396,113540.0,113530.0,0.0212]
[1754144387212,4.80382029,113540.0,113530.0,0.0212]
[1754144387561,4.59285459,113540.0,113530.0,0.0212]
[1754144387957,4.58668105,113540.0,113530.0,0.0212]
[1754144388213,4.59285533,113540.0,113530.0,0.0212]
[1754144388861,4.26616462,113540.0,113530.0,0.0212]
[1754144389083,4.59285533,113540.0,113530.0,0.0212]
[1754144389562,4.7690047,113540.0,113530.0,0.0212]
[1754144390640,4.44231399,113540.0,113530.0,0.0212]
[1754144390867,4.7690047,113540.0,113530.0,0.0212]
[1754144391323,4.44231399,113540.0,113530.0,0.0212]
[1754144391542,4.7690047,113540.0,113530.0,0.0212]
[1754144394372,4.7879797,113540.0,113530.0,0.0212]
[1754144394995,4.46128899,113540.0,113530.0,0.0212]
[1754144395210,4.78797906,113540.0,113530.0,0.0212]
[1754144395578,1.44379206,113540.0,113530.0,0.0212]
[1754144395812,4.78797906,113540.0,113530.0,0.0212]
[1754144396746,4.77418572,113540.0,113530.0,0.0212]
[1754144397143,4.44749501,113540.0,113530.0,0.0212]
[1754144397333,4.77418572,113540.0,113530.0,0.0212]
[1754144397540,4.44749501,113540.0,113530.0,0.0212]
[1754144398012,4.77418572,113540.0,113530.0,0.0212]
[1754144399614,4.78797997,113540.0,113530.0,0.0212]
[1754144400041,1.44380092,113540.0,113530.0,0.0212]
[1754144400276,4.78798792,113540.0,113530.0,0.0212]
[1754144400741,4.46129721,113540.0,113530.0,0.0212]
[1754144400965,4.78798792,113540.0,113530.0,0.0212]